bitfinex/quotes_ETHUSD_20220109
["timestamp","ask_amount","ask_price","bid_price","bid_amount"]
[1641756854844,18.31,3203.5,3203.0,0.01]
[1641756856045,1.22969646,3203.1,3202.7,6.07]
[1641756856246,1.0,3203.7,3202.7,6.07]
[1641756856448,0.23978411,3203.8,3203.3,6.11]
[1641756856891,0.78069,3203.6,3203.4,0.00625266]
[1641756857090,0.23978411,3203.8,3203.4,0.00625266]
[1641756857292,0.23978411,3203.8,3203.5,1.23944058]
[1641756857487,0.23978411,3203.8,3203.4,0.00625266]
[1641756857690,0.23978411,3203.8,3203.6,0.00511581]
[1641756857886,0.23978411,3203.8,3203.4,0.00625266]
[1641756858286,0.78068,3203.6,3203.4,0.00625266]
[1641756858489,1.21060023,3203.5,3203.4,0.00625266]
[1641756858691,0.23978411,3203.8,3203.4,0.00625266]
[1641756859087,0.23978411,3203.8,3203.4,1.00625266]
[1641756859488,6.437e-05,3203.9,3203.7,0.01271523]
[1641756859687,0.00113685,3204.7,3204.4,1.2188261]
[1641756859893,1.50735778,3204.5,3204.4,1.2188261]
[1641756860340,0.00113685,3204.7,3204.4,1.2188261]
[1641756861342,0.00113685,3204.7,3203.8,0.67897896]
[1641756861343,1.18007271,3204.5,3203.8,0.67897896]
[1641756861538,1.18007271,3204.5,3203.8,0.75699896]
[1641756861738,1.18007271,3204.5,3203.9,0.00341054]
[1641756863340,1.18007271,3204.5,3204.0,0.07475679]
[1641756863540,1.18007271,3204.5,3204.2,1.33533974]
[1641756863940,1.18007271,3204.5,3204.3,0.00113684]
[1641756865394,1.18007271,3204.5,3203.9,0.00341054]
[1641756866792,1.18007271,3204.5,3203.1,0.45302]
[1641756866793,1.18007271,3204.5,3203.3,0.00682108]
[1641756866997,1.18007271,3204.5,3203.1,0.45302]
[1641756866998,1.18007271,3204.5,3203.2,0.0073895]
[1641756867193,0.00113685,3204.7,3203.4,1.15175294]
[1641756867194,1.43708857,3203.7,3203.4,1.15175294]
[1641756867393,1.43708857,3203.7,3203.5,6.11]
[1641756867597,1.43708857,3203.7,3203.5,6.11568423]
[1641756867842,1.43708857,3203.7,3203.6,0.00511581]
[1641756868943,0.00181706,3204.2,3203.6,0.00511581]
[1641756869143,0.00181706,3204.2,3203.7,0.06498148]
[1641756869547,0.00181706,3204.2,3203.8,0.00397896]
[1641756869843,0.00181706,3204.2,3203.9,0.03908894]
[1641756870043,0.00181706,3204.2,3204.0,1.10525149]
[1641756870245,1.09915772,3204.5,3204.0,1.1080936]
[1641756870447,1.09915772,3204.5,3204.1,0.00227369]
[1641756870846,1.09915772,3204.5,3203.7,0.00454738]
[1641756872391,1.09915772,3204.5,3203.9,0.04294446]
[1641756872592,1.09915772,3204.5,3203.8,1.11670537]
[1641756872792,1.09915772,3204.5,3204.0,0.00284211]
[1641756872994,1.09915772,3204.5,3203.9,0.00341054]
[1641756873991,1.09915772,3204.5,3203.8,0.00397896]
[1641756874595,1.25627328,3203.9,3203.8,0.00397896]
[1641756874794,0.78041,3204.6,3203.8,0.00397896]
[1641756874993,0.00113685,3204.7,3203.8,0.00397896]
[1641756875643,0.00113685,3204.7,3203.9,0.375]
[1641756875837,0.00113685,3204.7,3204.4,1.23706912]
[1641756876237,0.00113685,3204.7,3204.3,2.26940535]
[1641756876744,0.00113685,3204.7,3204.4,0.45590546]
[1641756877139,0.00113685,3204.7,3204.5,0.078]
[1641756877538,0.00113685,3204.7,3204.6,13.475]
[1641756877745,0.00181706,3206.2,3204.7,12.8]
[1641756877946,0.00181706,3206.2,3205.3,1.5596939]
[1641756878145,0.00795793,3206.1,3205.4,0.37797]
[1641756878342,0.00795793,3206.1,3205.5,0.375]
[1641756878540,0.0073895,3206.0,3205.5,0.375]
[1641756878740,1.12169608,3205.4,3205.2,2.41154748]
[1641756878940,9.608e-05,3205.4,3205.2,1.1547175]
[1641756879191,0.00341054,3205.3,3205.2,1.4547175]
[1641756879392,1.56310867,3206.4,3205.7,0.03894525]
[1641756879593,1.56310867,3206.4,3205.8,0.375]
[1641756879791,0.00568424,3206.3,3205.8,0.375]
[1641756880191,1.56310867,3206.4,3205.8,0.375]
[1641756880192,0.00511581,3206.2,3205.8,0.375]
[1641756880391,0.00511581,3206.2,3205.7,0.07796]
[1641756880591,0.00454739,3206.1,3205.7,0.07796]
[1641756880992,0.00397896,3206.0,3205.7,0.07796]
[1641756881391,0.00341054,3205.9,3205.7,0.07796]
[1641756881793,0.00284212,3205.8,3205.6,0.04489984]
[1641756882191,0.00227369,3205.7,3205.5,2.85817779]
[1641756882392,0.00227369,3205.7,3205.6,0.7797659]
[1641756882592,1.4452837,3206.8,3206.0,1.28668886]
[1641756882842,4.17830776,3206.8,3205.8,1.5594463]
[1641756883042,0.00795793,3206.7,3205.6,0.375]
[1641756883241,0.07796,3206.6,3205.6,0.375]
[1641756883448,0.08534951,3206.6,3205.6,0.375]
[1641756883640,0.08534951,3206.6,3206.0,0.00202929]
[1641756883641,0.00682108,3206.5,3206.0,0.00202929]
[1641756883840,0.00682108,3206.5,3206.0,0.00485179]
[1641756883841,1.43896759,3206.1,3206.0,0.00485179]
[1641756884039,1.43896759,3206.1,3206.0,0.0058621]
[1641756884239,0.00454739,3206.1,3206.0,0.007885]
[1641756884442,0.00454739,3206.1,3206.0,0.00889531]
[1641756884640,0.00454739,3206.1,3206.0,0.00969531]
[1641756885441,0.00454739,3206.1,3205.6,0.33469531]
[1641756885842,0.00397896,3206.0,3205.6,0.33469531]
[1641756886045,0.00397896,3206.0,3205.0,0.87303262]
[1641756886241,0.00341054,3205.9,3205.0,0.87303262]
[1641756886443,0.00341054,3205.9,3205.1,0.00113685]
[1641756886695,0.00284212,3205.8,3205.1,0.00113685]
[1641756886888,0.00284212,3205.8,3205.6,3.1]
[1641756887090,0.00227369,3205.7,3205.6,3.1]
[1641756887287,0.00227369,3205.7,3205.6,3.05]
[1641756888494,5.75227369,3205.7,3205.6,3.05]
[1641756888692,5.83024369,3205.7,3205.6,3.05]
[1641756889088,0.08024369,3205.7,3205.6,3.05]
[1641756889489,5.73024369,3205.7,3205.6,3.05]
[1641756889691,0.08024369,3205.7,3205.6,3.05]
[1641756890440,10.88024369,3205.7,3205.6,3.05]
[1641756891139,0.08024369,3205.7,3205.6,3.05]
[1641756892739,0.00227369,3205.7,3205.6,3.05]
[1641756893541,7.30227369,3205.7,3205.6,3.05]
[1641756894098,25.61227369,3205.7,3205.6,3.05]
[1641756894293,0.00227369,3205.7,3205.6,3.05]
[1641756895498,0.00227369,3205.7,3205.6,3.0]
[1641756896896,0.00227369,3205.7,3205.6,4.24531085]
[1641756898143,0.00227369,3205.7,3205.6,6.70888404]
[1641756898342,0.00227369,3205.7,3205.6,11.30888404]
[1641756899242,0.00227369,3205.7,3205.6,6.70888404]
[1641756899641,0.00227369,3205.7,3205.6,5.70888404]
[1641756899842,1.21435766,3206.6,3205.6,5.40888404]
[1641756899843,1.05224435,3206.6,3205.6,5.40888404]
[1641756900043,0.024,3205.7,3205.6,5.40888404]
[1641756900245,0.024,3205.7,3205.6,3.0]
[1641756904898,0.024,3205.7,3205.6,3.00101038]
[1641756906145,0.024,3205.7,3205.6,3.0]
[1641756908448,31.99209,3205.7,3205.6,3.0]
[1641756908647,33.41092571,3205.7,3205.6,3.0]
[1641756909093,15.10092571,3205.7,3205.6,3.0]
[1641756909597,0.88209,3205.7,3205.6,3.0]
[1641756910191,12.28209,3205.7,3205.6,0.16717384]
[1641756910395,0.88209,3205.7,3205.6,0.16717384]
[1641756910892,3.53792162,3205.7,3205.6,0.16717384]
[1641756911092,3.45995162,3205.7,3205.6,0.16717384]
[1641756911292,2.23824443,3205.7,3205.6,0.16717384]
[1641756911893,1.45812443,3205.7,3205.6,0.16717384]
[1641756912847,3.01844443,3205.7,3205.6,0.16717384]
[1641756913042,5.67414416,3205.7,3205.6,0.16717384]
[1641756913340,14.55593127,3205.7,3205.6,0.16717384]
[1641756913539,5.67414416,3205.7,3205.6,0.16717384]
[1641756913740,26.60285627,3205.7,3205.6,0.16717384]
[1641756914141,0.78028,3205.3,3205.1,0.00113685]
[1641756914339,16.88051371,3205.2,3205.1,0.00113685]
[1641756914539,16.95850371,3205.2,3204.4,0.0073895]
[1641756914743,18.38799,3205.1,3204.4,0.0073895]
[1641756915342,3.42286854,3205.0,3204.4,0.0073895]
[1641756915742,1.51156878,3204.5,3204.4,0.0073895]
[1641756916341,1.56079,3204.9,3203.9,0.01023162]
[1641756916599,1.23359685,3205.0,3203.9,0.01023162]
[1641756916803,1.23359685,3205.0,3204.0,0.05573693]
[1641756916996,2.01386685,3205.0,3204.2,0.7802508]
[1641756917202,1.23359685,3205.0,3204.3,0.03676288]
[1641756917401,1.23359685,3205.0,3204.3,0.00795792]
[1641756917402,1.18359685,3205.0,3204.3,0.00795792]
[1641756917596,1.18359685,3205.0,3204.4,0.0073895]
[1641756917797,1.18359685,3205.0,3204.3,1.38399714]
[1641756917798,0.00179685,3205.0,3204.3,1.38399714]
[1641756918000,1.32290351,3205.4,3204.4,0.0073895]
[1641756918199,1.32290351,3205.4,3204.5,0.03563994]
[1641756918400,0.85816,3205.5,3204.5,0.03563994]
[1641756918608,3.97069,3205.6,3204.6,0.00625265]
[1641756918805,3.8927,3205.6,3204.7,0.05505779]
[1641756919006,0.0448,3205.7,3205.6,0.00101445]
[1641756919205,7.8948,3205.7,3205.6,0.00101445]
[1641756920099,7.8916,3205.7,3205.1,1.31102265]
[1641756920349,10.50726775,3205.7,3205.1,1.31102265]
[1641756920540,10.50726775,3205.7,3205.2,0.00284211]
[1641756920740,2.65566775,3205.7,3205.2,0.00284211]
[1641756920939,2.65566775,3205.7,3205.3,0.06761029]
[1641756921343,2.65566775,3205.6,3205.5,1.00643498]
[1641756921844,0.00170527,3206.0,3205.7,1.12374477]
[1641756922045,1.57813099,3206.5,3205.9,12.8]
[1641756922248,1.18860246,3206.7,3206.1,0.03996725]
[1641756922445,0.0022737,3206.4,3206.2,0.52695]
[1641756922645,0.0022737,3206.4,3206.3,0.449]
[1641756922841,1.18860246,3206.7,3206.3,0.82696]
[1641756923040,1.57813099,3206.9,3206.3,1.94202346]
[1641756923244,3.99217151,3207.2,3206.5,1.5592284]
[1641756923444,0.07972685,3207.5,3206.5,0.7796384]
[1641756923445,0.00113684,3206.8,3206.5,0.7796384]
[1641756923845,0.00454738,3207.4,3206.5,0.7796384]
[1641756924292,0.00397896,3207.3,3206.5,0.7796384]
[1641756924692,0.00341054,3207.2,3206.5,0.7796384]
[1641756925101,0.00284211,3207.1,3206.5,0.7796384]
[1641756925397,0.00227369,3207.0,3206.7,0.7796213]
[1641756925595,0.00227369,3207.0,3206.8,0.04084063]
[1641756925794,0.00170527,3206.9,3206.7,0.7796213]
[1641756926198,0.00511581,3207.5,3206.7,0.7796213]
[1641756926596,0.00454738,3207.4,3206.7,0.7796213]
[1641756926796,0.00454738,3207.4,3206.7,2.1965442]
[1641756926994,0.00397896,3207.3,3206.7,2.1965442]
[1641756927395,0.00341054,3207.2,3206.7,2.1965442]
[1641756927600,0.00341054,3207.2,3206.8,1.19964012]
[1641756927859,0.00284211,3207.1,3206.9,0.04057791]
[1641756928047,0.00284211,3207.1,3206.7,0.6]
[1641756928246,0.00227369,3207.0,3206.7,0.6]
[1641756928445,0.07795,3206.9,3206.7,0.6]
[1641756928646,0.07965527,3206.9,3206.7,0.6]
[1641756928947,10.57805053,3206.8,3206.7,0.58004]
[1641756929348,12.8,3206.7,3206.4,0.00113684]
[1641756929547,1.52805053,3206.8,3206.4,0.00113684]
[1641756929749,1.52805053,3206.8,3205.7,0.00511582]
[1641756930051,1.2990804,3205.9,3205.7,0.00511582]
[1641756930252,21.53236506,3206.7,3205.7,0.00511582]
[1641756930253,0.78012,3205.8,3205.7,0.00511582]
[1641756930449,10.3683,3206.7,3205.2,0.00795793]
[1641756930450,0.07798,3205.9,3205.2,0.00795793]
[1641756930649,0.07797,3206.6,3205.2,0.00795793]
[1641756931252,18.38797,3206.6,3205.2,0.00795793]
[1641756931453,1.54979316,3206.1,3205.2,0.00795793]
[1641756931693,0.78006,3205.9,3205.2,0.00795793]
[1641756932090,0.78006,3205.9,3204.9,0.0096632]
[1641756932091,0.07797,3205.8,3204.9,0.0096632]
[1641756932290,18.38797,3205.8,3204.7,0.01080005]
[1641756932490,18.31,3205.8,3204.7,0.01080005]
[1641756932893,1.25765205,3205.5,3204.7,1.3947057]
[1641756933290,1.25765205,3205.5,3204.8,0.01023163]
[1641756933992,0.78014,3205.6,3204.8,0.01023163]
[1641756934193,0.78014,3205.6,3204.9,0.07627572]
[1641756934395,0.07799,3206.1,3205.2,0.00101458]
[1641756934596,0.07799,3206.1,3205.3,0.04999971]
[1641756934793,0.85802,3206.1,3205.3,0.00738951]
[1641756934993,19.16802,3206.1,3205.4,0.00682109]
[1641756935359,19.16802,3206.1,3205.2,0.00202943]
[1641756935360,1.35349658,3205.7,3205.3,0.00738951]
[1641756935951,18.38799,3206.1,3205.3,0.00738951]
[1641756936253,0.78012,3205.7,3205.3,0.00738951]
[1641756937053,1.18871521,3205.6,3204.9,0.0096632]
[1641756937254,1.18871521,3205.6,3205.0,0.00909478]
[1641756937454,1.96886521,3205.6,3204.8,0.01023163]
[1641756937654,1.56026,3205.9,3204.8,0.01023163]
[1641756938058,22.24259,3206.1,3205.0,1.3589978]
[1641756938255,0.07799,3206.1,3205.1,0.04022119]
[1641756938454,0.78004,3206.0,3205.1,0.00852636]
[1641756938655,0.78004,3206.0,3205.3,1.18699823]
[1641756939090,0.78004,3206.0,3204.7,2.83259925]
[1641756939091,0.78004,3206.0,3205.4,0.00682109]
[1641756939493,0.78004,3206.0,3204.9,2.43872891]
[1641756939692,0.78004,3206.0,3204.9,0.0096632]
[1641756939895,0.78004,3206.0,3205.0,0.00909478]
[1641756940093,0.78004,3206.0,3204.9,0.0096632]
[1641756940292,0.78004,3206.0,3204.9,1.14898615]
[1641756940697,19.09004,3206.0,3205.0,0.00909478]
[1641756941494,0.78004,3206.0,3205.0,0.00909478]
[1641756941697,0.07799,3206.1,3205.1,0.07635697]
[1641756941895,0.07799,3206.1,3205.2,0.449]
[1641756942095,1.2092,3206.2,3205.3,2.58834206]
[1641756942300,1.2092,3206.2,3205.3,3.04473157]
[1641756942497,1.2092,3206.2,3205.5,1.00324402]
[1641756942698,0.07797,3206.5,3205.4,0.00682109]
[1641756942946,19.08994,3206.4,3205.6,0.00568424]
[1641756943142,0.07796,3206.3,3205.4,0.00682109]
[1641756943942,1.51202527,3206.1,3205.4,0.00682109]
[1641756944141,0.78001,3206.2,3205.4,0.00682109]
[1641756944341,2.65532658,3206.2,3205.5,0.04344772]
[1641756944541,2.65532658,3206.2,3205.4,0.00682109]
[1641756944740,2.65532658,3206.2,3205.6,0.00568424]
[1641756944943,2.65532658,3206.2,3205.4,0.78676549]
[1641756945142,0.77999,3206.2,3205.4,0.00682109]
[1641756945342,0.77999,3206.2,3205.5,0.00625266]
[1641756945542,2.65532658,3206.4,3205.4,0.00682109]
[1641756945744,2.65532658,3206.4,3205.6,1.07706585]
[1641756945946,8.9653,3206.6,3205.7,2.46993458]
[1641756946142,0.0192,3206.4,3205.8,0.04258908]
[1641756946341,0.0192,3206.4,3205.8,0.04713647]
[1641756946593,0.0192,3206.4,3205.9,1.22627236]
[1641756946794,1.58348761,3207.1,3206.0,2.7122847]
[1641756946795,2.65505802,3206.5,3206.0,2.7122847]
[1641756946994,2.65505802,3206.5,3206.1,0.4619313]
[1641756947195,2.65505802,3206.5,3206.3,1.12390938]
[1641756947492,2.65505802,3206.5,3206.4,1.22971685]
[1641756947693,4.62188884,3207.1,3206.6,1.42206598]
[1641756947898,1.55828106,3207.4,3206.6,1.42206598]
[1641756948296,0.07795,3207.6,3206.6,1.42206598]
[1641756948694,0.07795,3207.6,3206.7,0.77250296]
[1641756948695,2.65452994,3207.3,3206.7,0.77250296]
[1641756949498,4.00348525,3207.5,3206.7,0.77250296]
[1641756949900,2.65452994,3207.5,3206.7,0.77250296]
[1641756950096,2.65452994,3207.5,3206.8,2.41605534]
[1641756950347,2.65452994,3207.4,3206.7,1.55204296]
[1641756950542,2.65452994,3207.4,3206.7,0.77250296]
[1641756951443,1.31363438,3207.4,3206.7,0.77250296]
[1641756952241,0.07795,3207.7,3206.7,0.77250296]
[1641756952441,0.07795,3207.7,3206.7,0.81330802]
[1641756952843,0.07795,3207.7,3206.7,0.77250296]
[1641756953242,1.14333759,3207.4,3206.7,0.77250296]
[1641756953745,0.07795,3207.5,3206.7,0.77250296]
[1641756954211,0.85763,3207.5,3206.6,1.5591838]
[1641756954808,0.77968,3207.5,3206.7,0.03624354]
[1641756955007,0.77968,3207.5,3206.6,1.5591838]
[1641756955409,1.22511452,3207.4,3206.7,1.43314754]
[1641756955908,0.77968,3207.5,3206.7,1.43314754]
[1641756956110,0.85757,3207.7,3206.7,1.43314754]
[1641756956710,0.85757,3207.7,3206.7,2.21273254]
[1641756956910,1.32102911,3207.5,3206.7,2.21273254]
[1641756957110,1.32102911,3207.5,3206.7,0.779585]
[1641756957311,1.32102911,3207.5,3206.4,0.00113685]
[1641756957312,0.07795,3206.8,3206.4,0.00113685]
[1641756957712,0.07795,3206.8,3206.3,0.00170527]
[1641756958747,0.07795,3206.8,3206.4,0.04096639]
[1641756959147,0.07795,3206.8,3206.3,0.00170527]
[1641756961453,0.77984,3206.7,3206.3,0.00170527]
[1641756961894,0.07795,3206.8,3206.3,0.00170527]
[1641756962594,0.85779,3206.8,3206.3,0.00170527]
[1641756963594,0.85779,3206.8,3205.8,0.00454739]
[1641756964194,1.30285583,3206.3,3205.8,0.00454739]
[1641756965647,19.4962,3206.8,3205.8,0.00454739]
[1641756965648,1.1862,3206.8,3205.8,0.00454739]
[1641756965850,1.96603,3206.8,3205.8,0.00454739]
[1641756966048,22.7756038,3206.8,3205.8,0.00454739]
[1641756966347,20.27603,3206.8,3205.8,0.00454739]
[1641756966551,0.07796,3206.7,3205.8,0.00454739]
[1641756966751,1.47861747,3205.9,3205.6,0.00568424]
[1641756966947,1.47861747,3205.9,3205.5,0.78619126]
[1641756967352,1.47861747,3205.9,3205.6,0.00568424]
[1641756967650,1.47861747,3205.9,3205.4,0.00682109]
[1641756968049,1.47861747,3205.9,3204.9,0.0096632]
[1641756968250,1.44395634,3205.2,3204.9,0.0096632]
[1641756968452,0.7801,3205.7,3205.0,0.78006]
[1641756968651,2.7634177,3205.6,3204.9,0.0096632]
[1641756969202,18.31,3206.0,3204.9,0.0096632]
[1641756969396,24.97001903,3205.9,3204.6,0.01136847]
[1641756969596,1.12483308,3204.8,3204.6,0.01136847]
[1641756970501,1.12483308,3204.8,3204.5,0.0119369]
[1641756971396,1.12483308,3204.8,3204.4,0.01250532]
[1641756971596,0.078,3205.4,3204.4,0.01250532]
[1641756971800,1.2881,3205.4,3204.4,0.01250532]
[1641756972000,2.79601858,3205.3,3204.1,0.01421059]
[1641756972199,6.85,3205.1,3204.0,7.38462389]
[1641756972398,2.61216981,3205.0,3204.0,6.11]
[1641756972696,1.21573878,3204.4,3204.0,6.11]
[1641756973149,0.00113685,3204.3,3204.0,6.11]
[1641756973544,0.00113685,3204.3,3204.0,6.8902867]
[1641756973948,0.00113685,3204.3,3204.0,6.11]
[1641756974547,0.00113685,3204.3,3203.7,0.449]
[1641756974951,0.00113685,3204.3,3203.8,0.00170527]
[1641756974952,1.17668215,3204.2,3203.8,0.00170527]
[1641756975451,1.17668215,3204.2,3203.4,0.00397897]
[1641756975452,0.07802,3204.2,3203.4,0.00397897]
[1641756975849,0.8586066,3204.2,3203.4,0.00397897]
[1641756976450,0.07802,3204.2,3203.4,0.00397897]
[1641756976695,1.48214702,3203.6,3203.4,0.00397897]
[1641756978897,0.07803,3203.7,3203.4,0.00397897]
[1641756979098,0.07803,3204.0,3203.4,0.00397897]
[1641756979502,0.07803,3204.0,3203.2,0.00511581]
[1641756979997,1.30373989,3203.6,3203.2,0.00511581]
[1641756980749,1.30373989,3203.6,3203.3,0.00454739]
[1641756981049,1.30373989,3203.6,3203.0,0.00625266]
[1641756982249,1.30373989,3203.6,3202.9,0.00682108]
[1641756983951,1.30373989,3203.6,3202.6,0.00852635]
[1641756984197,1.22084727,3202.8,3202.6,0.00852635]
[1641756985597,1.04304143,3202.8,3202.2,6.11]
[1641756985797,1.04304143,3202.8,3202.2,5.94655635]
[1641756985996,1.04304143,3202.8,3202.3,0.00170527]
[1641756986398,1.04304143,3202.8,3202.1,1.3960521]
[1641756986599,3.8605,3203.2,3202.2,3.49122934]
[1641756986799,1.1586,3203.9,3202.6,0.7804689]
[1641756987000,1.1586,3203.9,3203.0,1.33181139]
[1641756987001,0.00284211,3203.1,3203.0,1.33181139]
[1641756987204,0.00682108,3203.8,3202.9,0.449]
[1641756987400,0.00284211,3203.1,3202.9,0.449]
[1641756987601,1.43010364,3203.5,3202.9,0.349]
[1641756987856,0.00227369,3203.0,3202.9,0.349]
[1641756988049,0.00454738,3203.4,3202.9,0.349]
[1641756988248,0.00227369,3203.0,3202.9,0.349]
[1641756988448,1.43010364,3203.5,3202.9,0.349]
[1641756988449,0.00397896,3203.3,3202.9,0.349]
[1641756988648,0.00227369,3203.0,3202.9,0.349]
[1641756988848,1.19084947,3203.0,3202.9,0.349]
[1641756989050,1.19084947,3203.0,3202.5,1.5609377]
[1641756989051,1.19312316,3203.0,3202.5,0.07804]
[1641756989258,1.27116316,3203.0,3202.5,0.07804]
[1641756989451,26.59693434,3202.8,3202.5,0.07804]
[1641756989651,0.07806,3202.7,3202.5,0.07804]
[1641756989956,0.00170527,3202.9,3202.1,0.449]
[1641756990151,0.00170527,3202.9,3202.3,0.7806359]
[1641756990352,0.00113684,3202.8,3202.4,0.07806]
[1641756990549,0.00113684,3202.8,3202.4,0.00113685]
[1641756990750,1.11724601,3203.1,3202.4,0.00113685]
[1641756990949,0.07804,3203.0,3202.4,0.00113685]
[1641756991152,0.00227369,3203.0,3202.2,1.54032475]
[1641756991353,0.00177685,3203.7,3202.3,0.449]
[1641756991354,0.00170527,3202.9,3202.3,0.449]
[1641756991605,0.00284212,3202.9,3202.4,0.449]
[1641756991800,0.00227369,3202.8,3202.5,0.449]
[1641756992002,0.00227369,3202.8,3202.6,2.51199236]
[1641756992203,0.00177685,3203.7,3202.8,2.63582717]
[1641756992404,0.00177685,3203.7,3203.5,0.03935289]
[1641756992606,0.00177685,3203.7,3203.6,6.299]
[1641756992801,0.00177685,3203.7,3203.6,0.449]
[1641756993000,0.00177685,3203.7,3203.6,1.749]
[1641756993001,0.00916636,3203.7,3203.6,1.749]
[1641756993301,0.00916636,3203.7,3203.6,1.049]
[1641756993502,0.00916636,3203.7,3203.6,0.449]
[1641756994001,0.00916636,3203.7,3203.6,1.88026908]
[1641756994202,0.00738951,3203.7,3203.6,1.88026908]
[1641756994401,0.00738951,3203.7,3203.6,6.93026908]
[1641756994601,0.00738951,3203.7,3203.6,3.96046704]
[1641756994802,0.00738951,3203.7,3203.6,1.449]
[1641756995002,0.00738951,3203.7,3203.1,0.449]
[1641756995206,0.78798951,3203.7,3202.7,0.449]
[1641756995455,0.08485108,3203.6,3202.7,0.449]
[1641756995656,0.08485108,3203.6,3203.1,1.03827727]
[1641756995856,0.00625266,3203.5,3203.1,1.48727727]
[1641756996253,0.00568423,3203.4,3203.1,1.48727727]
[1641756996454,0.00568423,3203.4,3203.2,0.3]
[1641756996754,0.00511581,3203.3,3203.2,1.82727206]
[1641756997156,0.00511581,3203.3,3203.2,3.12727206]
[1641756998156,0.00511581,3203.3,3203.2,1.52727206]
[1641756999394,0.00511581,3203.3,3203.2,3.12727206]
[1641757001197,0.00511581,3203.3,3203.2,1.0]
[1641757001602,0.00511581,3203.3,3203.2,0.3]
[1641757002203,0.00511581,3203.3,3203.1,0.449]
[1641757002400,0.00511581,3203.3,3203.1,0.749]
[1641757002601,0.00454739,3203.2,3203.1,0.749]
[1641757002863,0.00454739,3203.2,3203.1,0.449]
[1641757003051,0.00454739,3203.2,3203.1,0.749]
[1641757003249,0.00454739,3203.2,3203.1,0.449]
[1641757003448,0.00454739,3203.2,3203.1,0.749]
[1641757003652,0.00454739,3203.2,3203.1,0.449]
[1641757005350,0.00454739,3203.2,3203.1,0.749]
[1641757006597,0.00454739,3203.2,3203.1,0.449]
[1641757006996,0.00454739,3203.2,3202.8,0.07803]
[1641757007196,0.07804,3203.1,3202.8,0.07803]
[1641757007395,0.08201896,3203.1,3202.8,0.07803]
[1641757007596,0.00341054,3203.0,3202.8,0.07803]
[1641757007797,0.07804,3202.9,3202.8,0.07803]
[1641757007998,0.00284212,3202.9,3202.8,0.07803]
[1641757008402,0.00284212,3202.9,3202.4,0.449]
[1641757008598,0.00284212,3202.9,3202.4,0.749]
[1641757008898,0.00227369,3202.8,3202.6,0.7805783]
[1641757009099,0.00227369,3202.8,3202.7,10.67704]
[1641757009300,0.00177685,3203.4,3202.7,11.27704]
[1641757009497,0.00177685,3203.4,3202.8,0.04724625]
[1641757009698,0.00511581,3203.3,3202.8,1.49624625]
[1641757009898,0.00511581,3203.3,3202.8,1.449]
[1641757010099,0.00454739,3203.2,3203.1,6.46733582]
[1641757010351,0.00454739,3203.2,3203.1,1.89771582]
[1641757010646,0.00454739,3203.2,3203.1,1.3]
[1641757010845,0.00454739,3203.2,3203.1,0.3]
[1641757011048,0.00454739,3203.2,3203.0,0.3]
[1641757011446,0.00397896,3203.1,3203.0,0.3]
[1641757011848,0.00397896,3203.1,3202.9,1.78039]
[1641757012048,0.00397896,3203.1,3202.9,1.08039]
[1641757012249,0.00341054,3203.0,3202.9,1.08039]
[1641757012649,0.00341054,3203.0,3202.9,1.38039]
[1641757012850,0.00341054,3203.0,3202.9,0.6]
[1641757013053,0.00341054,3203.0,3202.9,0.2]
[1641757013253,0.00341054,3203.0,3202.8,0.3]
[1641757013254,0.00341054,3203.0,3202.7,0.7805636]
[1641757013554,0.00284212,3202.9,3202.7,0.7805636]
[1641757013753,0.00284212,3202.9,3202.6,6.11]
[1641757013951,0.00227369,3202.8,3202.6,6.11]
[1641757014398,0.00170527,3202.7,3202.6,6.11]
[1641757014603,0.00170527,3202.7,3202.6,7.11]
[1641757016001,0.00170527,3202.7,3202.6,1.0]
[1641757016401,0.00170527,3202.7,3202.4,0.749]
[1641757016601,0.00170527,3202.7,3202.4,1.2296584]
[1641757016804,0.00113685,3202.6,3202.4,1.2296584]
[1641757017002,0.00113685,3202.6,3202.5,0.3]
[1641757017202,0.07804,3203.3,3202.5,0.3]
[1641757017203,0.00454739,3203.2,3202.5,0.3]
[1641757017505,0.00397896,3203.1,3202.5,6.47667549]
[1641757017707,0.00397896,3203.1,3202.6,0.03850635]
[1641757017957,0.00341054,3203.0,3202.6,1.0]
[1641757018155,0.00341054,3203.0,3202.7,2.91757752]
[1641757018353,1.18761571,3203.7,3202.8,0.0785005]
[1641757018354,0.00284212,3202.9,3202.8,0.0785005]
[1641757018553,0.00284212,3202.9,3202.8,1.5396426]
[1641757018761,0.00682108,3202.9,3202.8,1.5396426]
[1641757019055,0.00682108,3202.9,3202.8,10.12704]
[1641757019252,0.00682108,3202.9,3202.8,0.82704]
[1641757019461,0.00682108,3202.9,3202.8,1.82704]
[1641757020053,0.00602108,3202.9,3202.8,2.049]
[1641757020255,0.00204212,3202.9,3202.8,2.049]
[1641757020653,0.00204212,3202.9,3202.8,2.12704]
[1641757020853,0.00204212,3202.9,3202.8,4.53451817]
[1641757021055,0.00204212,3202.9,3202.8,11.98451817]
[1641757021695,3.82128186,3204.1,3202.9,8.65]
[1641757021895,5.0974,3204.2,3203.0,4.94486952]
[1641757022096,0.00568423,3203.9,3203.0,6.24486952]
[1641757022296,0.00568423,3203.9,3203.0,6.54486952]
[1641757022495,0.00511581,3203.8,3203.0,6.54486952]
[1641757022894,0.00454739,3203.7,3203.0,4.93374543]
[1641757023296,0.07803,3204.0,3203.0,4.15341543]
[1641757023297,0.00397896,3203.6,3203.0,4.15341543]
[1641757023496,0.00397896,3203.6,3203.0,2.829325]
[1641757023698,0.00341054,3203.5,3203.1,1.12675312]
[1641757023903,0.00341054,3203.5,3203.2,0.449]
[1641757024196,0.00284211,3203.4,3203.3,0.449]
[1641757024795,0.00284211,3203.4,3203.3,0.399]
[1641757024997,0.00284211,3203.4,3202.9,2.00965]
[1641757025199,0.00284211,3203.4,3203.0,1.0]
[1641757025449,0.07803,3203.7,3202.9,0.449]
[1641757025450,0.00227369,3203.3,3202.9,0.449]
[1641757025851,0.00170527,3203.2,3202.9,0.449]
[1641757026048,0.00170527,3203.2,3202.6,0.00607873]
[1641757026049,1.1438069,3203.2,3202.6,0.00607873]
[1641757026253,1.1438069,3203.2,3202.9,0.00101131]
[1641757026254,0.00113684,3203.1,3202.9,0.00101131]
[1641757026649,0.00113684,3203.1,3202.9,0.00202698]
[1641757026849,0.00113684,3203.1,3202.9,0.00506355]
[1641757026850,4.87804,3203.0,3202.9,0.00506355]
[1641757027048,4.87804,3203.0,3202.9,0.00607922]